fUSD/lending_fUSD_20260123
["ID","MTS","AMOUNT","RATE_DAILY","PERIOD"]
[403103952,1769165432075,-20586.22039502,0.00014251,2]
[403103953,1769165432086,-31654.0864219,0.00014251,2]
[403103954,1769165432169,-539.07428944,0.00014251,2]
[403103955,1769165432223,-370.06815515,0.00014251,2]
[403103974,1769165438046,-1349.90711029,0.00014251,2]
[403103975,1769165438059,-1294.81404362,0.00014251,2]
[403103976,1769165438073,-988.23777312,0.00014251,2]
[403103977,1769165438098,-9050.06184128,0.00014251,2]
[403103978,1769165438110,-3106.04915227,0.00014251,2]
[403103979,1769165438122,-1188.74622491,0.00014251,2]
[403103980,1769165438134,-7769.37753702,0.00014251,2]
[403103981,1769165438163,-3570.74242685,0.00014251,2]
[403103983,1769165438310,-32566.8646991,0.00014251,2]
[403103984,1769165438322,-4117.0425,0.00014251,2]
[403103985,1769165438333,-195.0,0.00014301,2]
[403103986,1769165438344,-250.0,0.00014301,2]
[403103987,1769165438355,-11300.55391701,0.0001435,2]
[403103989,1769165438367,-195.0,0.00014553,2]
[403103991,1769165438377,-250.0,0.00014553,2]
[403103993,1769165438387,-11300.55391701,0.00014744,2]
[403103994,1769165438398,-500.0,0.00014759,2]
[403103995,1769165438410,-200.0,0.00014997,2]
[403103997,1769165438421,-1000.0,0.00015124,2]
[403103998,1769165438431,-11300.55391701,0.00015139,2]
[403103999,1769165438441,-344.20850981,0.00015511,2]
[403104000,1769165438452,-500.0,0.00015511,2]
[403104001,1769165438462,-500.0,0.00015511,2]
[403104002,1769165438472,-500.0,0.00015511,2]
[403104003,1769165438483,-500.0,0.00015511,2]
[403104004,1769165438495,-500.0,0.00015511,2]
[403104005,1769165438505,-500.0,0.00015511,2]
[403104006,1769165438516,-500.0,0.00015511,2]
[403104007,1769165438526,-500.0,0.00015511,2]
[403104008,1769165438536,-500.0,0.00015511,2]
[403104009,1769165438547,-500.0,0.00015511,2]
[403104010,1769165438558,-500.0,0.00015511,2]
[403104011,1769165438568,-151.0,0.00015511,2]
[403104012,1769165438578,-3210.0,0.00015511,2]
[403104013,1769165438589,-151.0,0.00015511,2]
[403104014,1769165438598,-151.0,0.00015511,2]
[403104015,1769165438608,-151.0,0.00015511,2]
[403104016,1769165438618,-151.0,0.00015511,2]
[403104017,1769165438628,-151.0,0.00015511,2]
[403104018,1769165438638,-1924.0,0.00015511,2]
[403104019,1769165438648,-151.0,0.00015511,2]
[403104020,1769165438659,-151.0,0.00015511,2]
[403104021,1769165438678,-151.0,0.00015511,2]
[403104022,1769165438690,-151.0,0.00015511,2]
[403104023,1769165438701,-151.0,0.00015511,2]
[403104024,1769165438711,-500.0,0.00015511,2]
[403104025,1769165438722,-500.0,0.00015511,2]
[403104026,1769165438733,-428.63411502,0.00015511,2]
[403104027,1769165438744,-250.0,0.00015511,2]
[403104028,1769165438756,-250.0,0.00015511,2]
[403104029,1769165438767,-250.0,0.00015511,2]
[403104030,1769165438777,-250.0,0.00015511,2]
[403104031,1769165438787,-250.0,0.00015511,2]
[403104032,1769165438798,-250.0,0.00015511,2]
[403104033,1769165438808,-250.0,0.00015511,2]
[403104034,1769165438819,-250.0,0.00015511,2]
[403104035,1769165438830,-250.0,0.00015511,2]
[403104036,1769165438840,-250.0,0.00015511,2]
[403104037,1769165438851,-250.0,0.00015511,2]
[403104038,1769165438862,-739.0,0.00015511,2]
[403104039,1769165438872,-290.13,0.00015511,2]
[403104040,1769165438883,-222.0,0.00015523,2]
[403104041,1769165438893,-174.08062416,0.00015532,2]
[403104042,1769165438903,-11300.55391701,0.00015533,2]
[403104043,1769165438914,-621.72400888,0.00015541,2]
[403104044,1769165438924,-250.0,0.00015649,2]
[403104045,1769165438936,-1680.0,0.00015675,2]
[403104046,1769165438947,-195.0,0.00015676,2]
[403104047,1769165438958,-253.34251032,0.00015676,2]
[403104048,1769165438969,-741.66755747,0.00015676,2]
[403104049,1769165438980,-195.0,0.00015676,2]
[403104050,1769165438995,-250.0,0.00015676,2]
[403104051,1769165439006,-487.98100774,0.00015676,2]
[403104052,1769165439018,-5851.97442029,0.00015731,2]
[403104053,1769165439030,-151.0,0.00015731,2]
[403104054,1769165439043,-151.0,0.00015732,2]
[403104055,1769165439054,-166.66,0.00015757,2]
[403104056,1769165439066,-290.13,0.00015785,2]
[403104057,1769165439077,-1804.77,0.00015795,2]
[403104058,1769165439088,-6067.9,0.00015887,2]
[403104059,1769165439099,-2957.8,0.00015887,2]
[403104060,1769165439111,-11300.55391701,0.00015928,2]
[403104061,1769165439122,-159.86,0.00015951,2]
[403104062,1769165439133,-5851.97442029,0.00015972,2]
[403104063,1769165439144,-290.13,0.00016059,2]
[403104064,1769165439155,-193.22,0.00016076,2]
[403104065,1769165439167,-166.66,0.00016089,2]
[403104066,1769165439179,-177.57579433,0.0001613,2]
[403104067,1769165439190,-313.26474992,0.0001613,2]
[403104068,1769165439201,-468.62533075,0.0001613,2]
[403104069,1769165439213,-634.0653,0.0001613,2]
[403104070,1769165439224,-919.77,0.00016139,2]
[403104071,1769165439235,-5851.97442029,0.00016213,2]
[403104072,1769165439246,-11300.55391701,0.00016322,2]
[403104073,1769165439257,-290.13,0.00016333,2]
[403104074,1769165439267,-500.0,0.00016356,2]
[403104075,1769165439277,-500.0,0.00016356,2]
[403104076,1769165439288,-37240.7576,0.00016409,2]
[403104077,1769165439298,-237.0033,0.00016409,2]
[403104078,1769165439309,-166.66,0.00016421,2]
[403104079,1769165439322,-500.0,0.00016438,2]
[403104080,1769165439332,-500.0,0.00016438,2]
[403104081,1769165439343,-500.0,0.00016438,2]
[403104082,1769165439354,-500.0,0.00016438,2]
[403104083,1769165439365,-500.0,0.00016438,2]
[403104084,1769165439376,-500.0,0.00016438,2]
[403104085,1769165439386,-500.0,0.00016438,2]
[403104086,1769165439399,-500.0,0.00016438,2]
[403104087,1769165439410,-500.0,0.00016438,2]
[403104088,1769165439421,-500.0,0.00016438,2]
[403104089,1769165439431,-544.11659972,0.00016438,2]
[403104090,1769165439442,-500.0,0.00016438,2]
[403104091,1769165439452,-500.0,0.00016438,2]
[403104092,1769165439464,-500.0,0.00016438,2]
[403104093,1769165439475,-500.0,0.00016438,2]
[403104094,1769165439486,-500.0,0.00016438,2]
[403104095,1769165439496,-500.0,0.00016438,2]
[403104096,1769165439507,-500.0,0.00016438,2]
[403104097,1769165439517,-500.0,0.00016438,2]
[403104098,1769165439527,-500.0,0.00016438,2]
[403104099,1769165439538,-500.0,0.00016438,2]
[403104100,1769165439548,-500.0,0.00016438,2]
[403104101,1769165439558,-500.0,0.00016438,2]
[403104102,1769165439569,-500.0,0.00016438,2]
[403104103,1769165439579,-500.0,0.00016438,2]
[403104104,1769165439589,-500.0,0.00016438,2]
[403104105,1769165439600,-500.0,0.00016438,2]
[403104106,1769165439610,-500.0,0.00016438,2]
[403104107,1769165439621,-500.0,0.00016438,2]
[403104108,1769165439631,-500.0,0.00016438,2]
[403104109,1769165439641,-5851.97442029,0.00016454,2]
[403104110,1769165439651,-500.0,0.00016483,2]
[403104111,1769165439662,-500.0,0.00016483,2]
[403104112,1769165439672,-500.0,0.00016483,2]
[403104113,1769165439682,-500.0,0.00016483,2]
[403104114,1769165439693,-14668.3,0.00016484,2]
[403104115,1769165439703,-150.0,0.00016497,2]
[403104116,1769165439714,-36032.5337413,0.00016509,2]
[403104117,1769165439724,-290.13,0.00016607,2]
[403104118,1769165439734,-4331.92,0.00016681,2]
[403104119,1769165439744,-5851.97442029,0.00016695,2]
[403104120,1769165439754,-1000.0,0.00016712,2]
[403104121,1769165439765,-11300.55391701,0.00016717,2]
[403104122,1769165439776,-166.66,0.00016752,2]
[403104123,1769165439788,-3210.0,0.0001688,2]
[403104124,1769165439800,-5851.97442029,0.00016936,2]
[403104125,1769165439811,-1000.0,0.00016986,2]
[403104126,1769165439821,-166.66,0.00017084,2]
[403104127,1769165439832,-11300.55391701,0.00017111,2]
[403104128,1769165439842,-5851.97442029,0.00017177,2]
[403104129,1769165439853,-1247.0,0.00017243,2]
[403104130,1769165439863,-1000.0,0.0001726,2]
[403104131,1769165439874,-166.66,0.00017416,2]
[403104132,1769165439885,-5851.97442029,0.00017418,2]
[403104135,1769165440228,-593.42247881,0.00017454,2]
[403104136,1769165440238,-1994.63113705,0.000175,3]
[403104137,1769165440248,-11300.55391701,0.00017506,2]
[403104138,1769165440258,-282.26,0.00017511,2]
[403104139,1769165440267,-173.29,0.00017512,2]
[403104140,1769165440277,-1000.0,0.00017534,2]
[403104141,1769165440286,-1455.0,0.00017592,2]
[403104142,1769165440295,-1052.79806165,0.0001764,2]
[403104143,1769165440305,-174.905,0.0001764,2]
[403104144,1769165440315,-2037.645,0.0001764,2]
[403104145,1769165440330,-575.69785776,0.00017659,2]
[403104148,1769165440963,-465.74054416,0.00017659,2]
[403104149,1769165440975,-1902.07,0.00017659,2]
[403104150,1769165440986,-320.91149851,0.00017659,2]
[403104151,1769165440997,-2587.55451986,0.00017659,2]
[403104152,1769165441006,-273.39786292,0.00017672,2]
[403104153,1769165441017,-356.606,0.00017672,2]
[403104154,1769165441028,-824.99613708,0.00017672,2]
[403104155,1769165441037,-150.0,0.00017699,2]
[403104156,1769165441047,-150.0,0.00017699,2]
[403104157,1769165441056,-500.0,0.00017699,2]
[403104158,1769165441066,-163.64353549,0.00017699,2]
[403104159,1769165441075,-500.0,0.00017699,2]
[403104160,1769165441085,-150.0,0.00017699,2]
[403104161,1769165441094,-150.0,0.00017699,2]
[403104162,1769165441104,-150.0,0.00017699,2]
[403104163,1769165441113,-150.48177771,0.00017699,2]
[403104164,1769165441122,-150.0,0.00017699,2]
[403104165,1769165441132,-150.0,0.00017699,2]
[403104166,1769165441141,-150.0,0.00017699,2]
[403104167,1769165441150,-213.08197882,0.00017699,2]
[403104168,1769165441160,-150.0,0.00017699,2]
[403104169,1769165441169,-150.0,0.00017699,2]
[403104170,1769165441178,-150.0,0.00017699,2]
[403104171,1769165441187,-150.0,0.00017699,2]
[403104172,1769165441197,-150.0,0.00017699,2]
[403104173,1769165441206,-150.0,0.00017699,2]
[403104174,1769165441215,-150.0,0.00017699,2]
[403104175,1769165441224,-150.0,0.00017699,2]
[403104176,1769165441232,-150.0,0.00017699,2]
[403104177,1769165441241,-202.52736514,0.00017699,2]
[403104178,1769165441250,-150.0,0.00017699,2]
[403104179,1769165441259,-150.0,0.00017699,2]
[403104180,1769165441268,-150.0,0.00017699,2]
[403104181,1769165441277,-500.0,0.00017699,2]
[403104182,1769165441286,-150.0,0.00017699,2]
[403104183,1769165441295,-150.0,0.00017699,2]
[403104184,1769165441304,-155.20427903,0.00017699,2]
[403104185,1769165441313,-500.0,0.00017699,2]
[403104186,1769165441324,-150.0,0.00017699,2]
[403104187,1769165441333,-500.0,0.00017699,2]
[403104188,1769165441342,-150.0,0.00017699,2]
[403104189,1769165441352,-500.0,0.00017699,2]
[403104190,1769165441362,-150.0,0.00017699,2]
[403104191,1769165441371,-500.0,0.00017699,2]
[403104192,1769165441379,-500.0,0.00017699,2]
[403104193,1769165441388,-150.0,0.00017699,2]
[403104194,1769165441399,-500.0,0.00017699,2]
[403104195,1769165441410,-447.0,0.00017699,2]
[403104196,1769165441419,-150.0,0.00017699,2]
[403104197,1769165441429,-2449.68748875,0.00017725,2]
[403104198,1769165441449,-1404.44569842,0.00017725,2]
[403104199,1769165441481,-2033.86681283,0.00017725,2]
[403104200,1769165441490,-150.0,0.00017754,2]
[403104201,1769165441501,-500.0,0.00017754,2]
[403104202,1769165441513,-500.0,0.00017754,2]
[403104203,1769165441524,-150.0,0.00017754,2]
[403104204,1769165441534,-130.57864627,0.00017754,2]
[403104205,1769165441545,-19.42135373,0.00017754,2]
[403104206,1769165441554,-150.0,0.00017754,2]
[403104207,1769165441563,-150.0,0.00017754,2]
[403104208,1769165441573,-150.0,0.00017754,2]
[403104209,1769165441582,-150.0,0.00017754,2]
[403104210,1769165441591,-500.0,0.00017754,2]
[403104211,1769165441600,-150.0,0.00017754,2]
[403104212,1769165441609,-207.37066984,0.00017754,2]
[403104213,1769165441618,-150.0,0.00017754,2]
[403104214,1769165441627,-500.0,0.00017754,2]
[403104215,1769165441637,-153.15937523,0.00017754,2]
[403104216,1769165441646,-500.0,0.00017754,2]
[403104217,1769165441656,-500.0,0.00017754,2]
[403104218,1769165441665,-150.0,0.00017754,2]
[403104219,1769165441675,-500.0,0.00017754,2]
[403104220,1769165441685,-500.0,0.00017754,2]
[403104221,1769165441695,-150.0,0.00017754,2]
[403104222,1769165441706,-500.0,0.00017754,2]
[403104223,1769165441717,-138.41189731,0.00017754,2]
[403104224,1769165441952,500.0,0.0001425,2]
[403104225,1769165441993,156.4992983,0.0001425,2]
[403104238,1769165443121,-308.58810269,0.00017754,2]
[403104239,1769165443130,-354.17189731,0.00017767,2]
[403104240,1769165443141,-3234.12810269,0.00017767,2]
[403104241,1769165443153,-150.0,0.00017808,2]
[403104242,1769165443167,-1000.0,0.00017808,2]
[403104243,1769165443180,-209.58217924,0.00017809,2]
[403104244,1769165443196,-289.78000002,0.00017809,2]
[403104245,1769165443244,-0.63782074,0.00017809,2]
[403104246,1769165443256,-301.41260571,0.00017809,2]
[403104247,1769165443271,-198.58739429,0.00017809,2]
[403104248,1769165443285,-150.0,0.00017809,2]
[403104249,1769165443297,-200.0,0.00017809,2]
[403104250,1769165443311,-200.0,0.00017809,2]
[403104251,1769165443328,-162.70343816,0.00017809,2]
[403104252,1769165443342,-37.29656184,0.00017809,2]
[403104253,1769165443352,-150.0,0.00017809,2]
[403104254,1769165443365,-150.0,0.00017809,2]
[403104255,1769165443380,-131.43177288,0.00017809,2]
[403104256,1769165443407,-368.56822712,0.00017809,2]
[403104257,1769165443422,-150.0,0.00017809,2]
[403104258,1769165443435,-109.72038355,0.00017809,2]
[403104259,1769165443449,-390.27961645,0.00017809,2]
[403104260,1769165443462,-500.0,0.00017809,2]
[403104261,1769165443474,-500.0,0.00017809,2]
[403104262,1769165443486,-183.73093878,0.00017809,2]
[403104263,1769165443498,-500.0,0.00017809,2]
[403104264,1769165443511,-150.0,0.00017809,2]
[403104265,1769165443524,-500.0,0.00017809,2]
[403104267,1769165443537,-500.0,0.00017809,2]
[403104268,1769165443550,-447.0,0.00017809,2]
[403104269,1769165443562,-399.2,0.00017813,2]
[403104270,1769165443573,-7995.51787182,0.0001782,2]
[403104271,1769165443585,-1868.45053,0.0001782,2]
[403104272,1769165443599,-1868.45054,0.0001782,2]
[403104273,1769165443612,-200.0,0.00017856,2]
[403104274,1769165443624,-150.0,0.00017863,2]
[403104275,1769165443636,-500.0,0.00017863,2]
[403104276,1769165443647,-500.0,0.00017863,2]
[403104277,1769165443657,-150.0,0.00017863,2]
[403104278,1769165443667,-150.0,0.00017863,2]
[403104279,1769165443677,-150.0,0.00017863,2]
[403104280,1769165443687,-500.0,0.00017863,2]
[403104283,1769165443700,-150.0,0.00017863,2]
[403104285,1769165443713,-500.0,0.00017863,2]
[403104287,1769165443723,-500.0,0.00017863,2]
[403104288,1769165443733,-500.0,0.00017863,2]
[403104289,1769165443742,-500.0,0.00017863,2]
[403104290,1769165443752,-200.0,0.00017863,2]
[403104291,1769165443763,-307.36288081,0.00017863,2]
[403104292,1769165443774,-500.0,0.00017863,2]
[403104293,1769165443785,-447.0,0.00017863,2]
[403104294,1769165443795,-500.0,0.00017873,2]
[403104295,1769165443805,-500.0,0.00017873,2]
[403104296,1769165443815,-391.20286753,0.00017873,2]
[403104297,1769165443833,-108.79713247,0.00017873,2]
[403104298,1769165443843,-501.1691222,0.00017873,2]
[403104299,1769165443854,-502.72275103,0.00017873,2]
[403104300,1769165443864,-17.71172443,0.00017899,2]
[403104301,1769165443886,-469.06607036,0.00017899,2]
[403104302,1769165443900,-13.22220521,0.00017899,2]
[403104303,1769165443911,-533.63539812,0.000179,2]
[403104304,1769165443922,-6902.34814302,0.000179,2]
[403104305,1769165443936,-4398.20577399,0.000179,2]
[403104306,1769165443947,-5851.97442029,0.000179,2]
[403104307,1769165443957,-474.21003043,0.000179,2]
[403104309,1769165446032,-479.26526645,0.000179,2]
[403104310,1769165446044,-500.0,0.00017917,2]
[403104311,1769165446055,-500.0,0.00017918,2]
[403104312,1769165446067,-500.0,0.00017918,2]
[403104313,1769165446078,-150.0,0.00017918,2]
[403104314,1769165446089,-150.0,0.00017918,2]
[403104315,1769165446100,-150.0,0.00017918,2]
[403104316,1769165446111,-500.0,0.00017918,2]
[403104317,1769165446122,-150.0,0.00017918,2]
[403104318,1769165446132,-500.0,0.00017918,2]
[403104319,1769165446143,-500.0,0.00017918,2]
[403104320,1769165446154,-500.0,0.00017918,2]
[403104321,1769165446165,-500.0,0.00017918,2]
[403104322,1769165446176,-500.0,0.00017918,2]
[403104323,1769165446187,-447.0,0.00017918,2]
[403104324,1769165446198,-166.66,0.00017928,2]
[403104325,1769165446209,-159.86,0.00017945,2]
[403104326,1769165446221,-615.0,0.00017945,2]
[403104327,1769165446232,-1159.328,0.00017945,2]
[403104328,1769165446243,-184.0,0.00017945,2]
[403104329,1769165446254,-2591.48673355,0.00017945,2]
[403104330,1769165446267,-3975.51326645,0.00017945,2]
[403104331,1769165446278,-567.0,0.00017945,2]
[403104332,1769165446288,-2441.0,0.00017945,2]
[403104333,1769165446299,-500.0,0.00017972,2]
[403104334,1769165446309,-500.0,0.00017972,2]
[403104335,1769165446321,-500.0,0.00017973,2]
[403104336,1769165446332,-500.0,0.00017973,2]
[403104337,1769165446347,-250.0,0.00017973,2]
[403104338,1769165446358,-250.0,0.00017973,2]
[403104339,1769165446370,-460.93814025,0.00017973,2]
[403104340,1769165446380,-250.0,0.00017973,2]
[403104341,1769165446391,-500.0,0.00017973,2]
[403104342,1769165446402,-500.0,0.00017973,2]
[403104343,1769165446415,-500.0,0.00017973,2]
[403104344,1769165446425,-309.3676208,0.00017973,2]
[403104345,1769165446436,-447.0,0.00017973,2]
[403104346,1769165446447,-500.0,0.00017973,2]
[403104347,1769165446458,-150.0,0.00017973,2]
[403104348,1769165446469,-151.0,0.00017997,2]
[403104349,1769165446480,-572.5809725,0.00017999,5]
[403104350,1769165446493,-632.35968347,0.00017999,5]
[403104351,1769165446504,-500.0,0.00017999,2]
[403104352,1769165446514,-155.0,0.00017999,2]
[403104353,1769165446524,-500.0,0.00017999,2]
[403104354,1769165446535,-500.0,0.00017999,2]
[403104355,1769165446546,-4340.0,0.00018,2]
[403104356,1769165446557,-16742.36685253,0.00018,2]
[403104357,1769165446588,-15796.29031247,0.00018,2]
[403104358,1769165446601,-757.84574982,0.00018,2]
[403104361,1769165446701,-1907.42836594,0.00018,2]
[403104362,1769165446740,-1585.57444177,0.00018,2]
[403104363,1769165446754,-633.850205,0.00018,2]
[403104364,1769165446767,-2505.35903128,0.00018,2]
[403104365,1769165446789,-546.15709375,0.00018,2]
[403104366,1769165446802,-1010.1,0.00018,2]
[403104367,1769165446819,-4095.31242003,0.00018,2]
[403104375,1769165466053,230.01114336,0.0001425,2]
[403104377,1769165473942,500.0,0.0001425,2]
[403104378,1769165475922,167.38440328,0.0001425,2]
[403104384,1769165487733,171.86530905,0.000155,3]
[403104476,1769165529007,6177.7317,0.00014151,2]
[403104480,1769165543395,1000.0,0.00014151,2]
[403104481,1769165546434,500.0,0.0001425,2]
[403104482,1769165546583,500.0,0.0001425,2]
[403104484,1769165546638,282.14605788,0.0001425,2]
[403104537,1769165648960,500.0,0.0001425,2]
[403104542,1769165668060,142.73669548,0.0001425,2]
[403104543,1769165668083,194.47550828,0.0001425,2]
[403104544,1769165676531,187.94619213,0.0001425,2]
[403104598,1769165925060,6362.04,0.00013198,2]
[403104631,1769166089404,171.7553832,0.000155,3]
[403104873,1769166632178,-2257.89935505,0.00015227,2]
[403104874,1769166632190,-242.10064495,0.00015227,2]
[403104875,1769166632200,-300.0,0.00015229,2]
[403104876,1769166632209,-784.35054235,0.00015234,2]
[403104877,1769166632232,-698.60816711,0.00015234,2]
[403104878,1769166632244,-557.31751329,0.00015234,2]
[403104879,1769166632254,-300.0,0.00015241,2]
[403104880,1769166632264,-130.96451356,0.00015241,2]
[403104881,1769166632275,-169.03548644,0.00015241,2]
[403104882,1769166632285,-300.0,0.00015241,2]
[403104883,1769166632295,-1200.0,0.00015241,2]
[403104884,1769166632305,-256.43049245,0.00015242,2]
[403104885,1769166632315,-344.88345995,0.00015242,2]
[403104886,1769166632324,-500.0,0.00015242,2]
[403104887,1769166632334,-500.0,0.00015242,2]
[403104888,1769166632343,-191.75854383,0.00015242,2]
[403104889,1769166632353,-500.0,0.00015242,2]
[403104890,1769166632362,-191.75854383,0.00015242,2]
[403104891,1769166632372,-500.0,0.00015242,2]
[403104892,1769166632381,-500.0,0.00015242,2]
[403104893,1769166632391,-500.0,0.00015242,2]
[403104894,1769166632400,-500.0,0.00015242,2]
[403104895,1769166632410,-500.0,0.00015242,2]
[403104896,1769166632420,-500.0,0.00015242,2]
[403104897,1769166632432,-500.0,0.00015242,2]
[403104898,1769166632442,-170.62893515,0.00015242,2]
[403104900,1769166632451,-500.0,0.00015242,2]
[403104902,1769166632460,-60.60397004,0.00015242,2]
[403104904,1769166632472,-439.39602996,0.00015242,2]
[403104907,1769166632481,-115.70283724,0.00015242,2]
[403104914,1769166632578,-76.05570659,0.00015242,2]
[403104915,1769166632587,-500.0,0.00015242,2]
[403104916,1769166632596,-0.13327736,0.00015242,2]
[403104917,1769166632607,-191.62526647,0.00015242,2]
[403104918,1769166632617,-500.0,0.00015242,2]
[403104919,1769166632626,-191.75854383,0.00015242,2]
[403104920,1769166632635,-485.40693041,0.00015242,2]
[403104921,1769166632646,-14.59306959,0.00015242,2]
[403104922,1769166632655,-191.75854383,0.00015242,2]
[403104923,1769166632664,-500.0,0.00015242,2]
[403104924,1769166632674,-191.75854383,0.00015242,2]
[403104925,1769166632687,-52.58665951,0.00015242,2]
[403104926,1769166632703,-139.17188432,0.00015242,2]
[403104927,1769166632714,-500.0,0.00015242,2]
[403104928,1769166632725,-324.82880696,0.00015243,2]
[403104929,1769166632738,-2229.82119304,0.00015243,2]
[403104930,1769166632748,-310.22,0.00015243,2]
[403104931,1769166632758,-4691.60851607,0.00015243,2]
[403104934,1769166638275,-1966.72612175,0.00015243,2]
[403104935,1769166638379,-2919.499,0.00015243,2]
[403104953,1769166640361,-354.78492556,0.00015243,2]
[403104954,1769166640478,-2329.68143662,0.00015243,2]
[403104955,1769166640487,-376.71520807,0.00015245,2]
[403104956,1769166640498,-2554.65,0.00015283,2]
[403104957,1769166640507,-344.45984652,0.00015323,2]
[403104966,1769166643329,-412.799227,0.00015323,2]
[403104967,1769166643383,-1797.39092648,0.00015323,2]
[403104968,1769166643393,-2554.65,0.00015363,2]
[403104969,1769166643403,-2554.65,0.00015403,2]
[403104970,1769166643413,-326.82,0.00015418,2]
[403104971,1769166643422,-2554.65,0.00015443,2]
[403104972,1769166643431,-500.0,0.00015455,2]
[403104973,1769166643440,-112.97428573,0.00015455,2]
[403104979,1769166646198,-38.02571427,0.00015455,2]
[403104980,1769166646207,-151.0,0.00015455,2]
[403104981,1769166646216,-151.0,0.00015455,2]
[403104982,1769166646226,-151.0,0.00015455,2]
[403104983,1769166646235,-151.0,0.00015455,2]
[403104984,1769166646244,-151.0,0.00015455,2]
[403104985,1769166646253,-151.0,0.00015455,2]
[403104986,1769166646263,-151.0,0.00015455,2]
[403104987,1769166646272,-151.0,0.00015455,2]
[403104988,1769166646281,-151.0,0.00015455,2]
[403104989,1769166646291,-151.0,0.00015455,2]
[403104990,1769166646300,-3210.0,0.00015455,2]
[403104991,1769166646309,-500.0,0.00015455,2]
[403104992,1769166646321,-500.0,0.00015455,2]
[403104993,1769166646330,-500.0,0.00015455,2]
[403104994,1769166646340,-500.0,0.00015455,2]
[403104995,1769166646349,-500.0,0.00015455,2]
[403104996,1769166646358,-500.0,0.00015455,2]
[403104997,1769166646367,-500.0,0.00015455,2]
[403104998,1769166646376,-500.0,0.00015455,2]
[403104999,1769166646385,-500.0,0.00015455,2]
[403105000,1769166646395,-500.0,0.00015455,2]
[403105001,1769166646404,-500.0,0.00015455,2]
[403105002,1769166646413,-500.0,0.00015455,2]
[403105003,1769166646422,-500.0,0.00015455,2]
[403105004,1769166646431,-524.07326336,0.00015455,2]
[403105005,1769166646440,-2833.01817246,0.00015464,2]
[403105006,1769166646451,-453.53024,0.00015464,2]
[403105007,1769166646462,-1008.24074895,0.00015464,2]
[403105008,1769166646477,-4500.0,0.00015464,2]
[403105009,1769166646487,-565.91203727,0.00015464,2]
[403105010,1769166646499,-592.40075735,0.00015464,2]
[403105011,1769166646510,-46.90804397,0.00015464,2]
[403105013,1769166646519,-2554.65,0.00015483,2]
[403105014,1769166646528,-2554.65,0.00015524,2]
[403105015,1769166646537,-2554.65,0.00015564,2]
[403105016,1769166646546,-233.2143777,0.00015596,2]
[403105017,1769166646555,-411.41780605,0.00015596,2]
[403105018,1769166646564,-615.45643256,0.00015596,2]
[403105020,1769166646573,-832.7286,0.00015596,2]
[403105022,1769166646582,-1210.82919921,0.00015604,2]
[403105028,1769166646632,-1343.82080079,0.00015604,2]
[403105030,1769166646642,-2554.65,0.00015644,2]
[403105032,1769166646651,-2554.65,0.00015684,2]
[403105034,1769166646663,-326.82,0.00015692,2]
[403105035,1769166646672,-2554.65,0.00015724,2]
[403105036,1769166646682,-2554.65,0.00015764,2]
[403105037,1769166646696,-2554.65,0.00015804,2]
[403105038,1769166646706,-2554.65,0.00015844,2]
[403105039,1769166646715,-2554.65,0.00015885,2]
[403105040,1769166646724,-2554.65,0.00015925,2]
[403105041,1769166646734,-169.35,0.00015938,2]
[403105042,1769166646744,-2554.65,0.00015965,2]